[Event "3rd VIZAG GM-Open 2022"]
[Site "Visakapatnam"]
[Date "2022.06.13"]
[Round "1.10"]
[White "Mirzoev, Azer"]
[Black "Mummana Venkata Ruthvik"]
[Result "1-0"]
[ECO "B07"]
[WhiteElo "2476"]
[BlackElo "1543"]
[Annotator "TA"]
[PlyCount "71"]
[EventDate "2022.06.13"]
[EventType "swiss"]
[EventCountry "IND"]
[SourceTitle "playchess.com"]
[Source "ChessBase"]
[SourceQuality "1"]
[TimeControl "5400+30"]

{[%evp 15,71,20,41,47,60,47,70,61,61,60,74,59,86,62,79,81,101,59,112,112,120,110,107,108,118,90,103,86,118,115,197,189,191,192,217,210,201,205,208,201,387,337,376,334,349,299,512,475,820,810,1055,1052,1023,1029,1023,1032,950,854]} 1. d4 {[%emt 0:00:04]} Nf6 {[%emt 0:00:43]} 2. Nf3 {[%emt 0:00:07]} g6 {[%emt 0:00:16]} 3. Nbd2 {[%emt 0:00:05]} Bg7 {[%emt 0:00:18]} 4. e4 {[%emt 0:00:05]} d6 {[%emt 0:00:16]} 5. Bd3 {[%emt 0:00:04]} O-O {[%emt 0:00:24]} 6. O-O {[%emt 0:00:04]} Nbd7 {[%emt 0:03:17]} 7. Re1 {[%emt 0:00:09]} e5 {[%emt 0:00:24]} 8. c3 {[%emt 0:00:10]} Nh5 {[%emt 0:03:17]} 9. Nf1 {[%emt 0:00:40] B07: Pirc Defence: Miscellaneous Systems.} Nb6 {[%emt 0:03:10] [#]} 10. h3 $146 {[%emt 0:00:49]} ({Predecessor:} 10. Bg5 Qe8 11. h3 h6 12. Be3 f5 13. dxe5 dxe5 14. Bc5 Rf7 15. exf5 Bxf5 16. Bxf5 Rd8 17. Bxg6 Rxd1 18. Raxd1 {1-0 (30) Godena,M (2490)-Barberi,A (2180) Jesolo 1999}) 10... Qe7 {[%emt 0:07:14]} 11. a4 {[%emt 0:04:34] White is slightly better.} a5 {[%emt 0:02:36]} 12. Bg5 {[%emt 0:00:59]} f6 {[%emt 0:12:11]} 13. Be3 {[%emt 0:01:50]} Be6 {[%emt 0:06:08]} 14. b3 {[%emt 0:03:25]} c5 {[%emt 0:04:27]} 15. Bb5 {[%emt 0:03:02]} Rac8 {[%emt 0:06:57]} 16. Rb1 {[%emt 0:00:47]} Bd7 {[%emt 0:03:31]} (16... f5 $14) 17. dxc5 $16 {[%emt 0:02:40]} dxc5 {[%emt 0:00:39]} 18. Bxd7 {[%emt 0:00:21]} Qxd7 {[%emt 0:02:59]} 19. Qxd7 {[%emt 0:01:01]} Nxd7 {[%emt 0:00:05]} 20. Red1 {[%emt 0:00:11]} Rfd8 {[%emt 0:05:23] [#]} 21. Rd5 $1 {[%emt 0:00:47]} Kf7 {[%emt 0:01:55]} 22. N1d2 {[%emt 0:03:56] White is more active.} b6 {[%emt 0:21:12]} (22... Nb6 $16) 23. Nc4 $36 {[%emt 0:00:27][%mdl 2048] Black must now prevent Nd6+. White has strong initiative.} Rb8 {[%emt 0:01:21]} 24. Rbd1 {[%emt 0:02:36]} Ke7 {[%emt 0:00:35]} 25. g4 {[%emt 0:15:57]} Nf4 {[%emt 0:00:11]} 26. Bxf4 {[%emt 0:00:05]} exf4 {[%emt 0:00:06]} 27. Kg2 {[%emt 0:00:25]} g5 $2 {[%emt 0:04:12]} (27... Ke8 28. Rd6 Bf8) 28. h4 {[%emt 0:07:18]} h6 {[%emt 0:00:35]} 29. Nd6 {[%emt 0:01:55]} Bf8 {[%emt 0:01:43]} 30. hxg5 {[%emt 0:01:09]} fxg5 $2 {[%emt 0:04:16]} (30... hxg5 31. c4 Ne5 32. Nxe5 fxe5 33. Nf5+ Ke8 34. Rxe5+ Kf7) 31. e5 {[%emt 0:01:52][%cal Be4e5,Be5e6,Be6e7][%mdl 32] White is clearly winning.} Ke6 {[%emt 0:02:19]} (31... c4 $142 32. bxc4 Nc5) 32. Nf5 {[%emt 0:05:51] Pair of Knights!} Rbc8 {[%emt 0:00:53] [#]} 33. Rd6+ $1 {[%emt 0:02:15][%mdl 512]} Bxd6 {[%emt 0:00:06]} 34. Rxd6+ {[%emt 0:00:03]} Kf7 {[%emt 0:00:01]} 35. e6+ {[%emt 0:00:13]} Ke8 {[%emt 0:01:13]} 36. e7 {[%emt 0:00:17] Weighted Error Value: White=0.06 (flawless) /Black=0.40} ({Less strong is} 36. Rxd7 Rxd7 37. exd7+ Kxd7 38. Nxh6 Ke7 39. Nf5+ (39. Nxg5 c4 $18) 39... Kd7 $18) 1-0

[Event "3rd VIZAG GM-Open 2022"]
[Site "Visakapatnam"]
[Date "2022.06.13"]
[Round "1.11"]
[White "Ritabrata Chakraborty"]
[Black "Neelotpal, Das"]
[Result "0-1"]
[ECO "C56"]
[WhiteElo "1639"]
[BlackElo "2431"]
[Annotator "TA"]
[PlyCount "58"]
[EventDate "2022.06.13"]
[EventType "swiss"]
[EventCountry "IND"]
[SourceTitle "playchess.com"]
[Source "ChessBase"]
[SourceQuality "1"]
[TimeControl "5400+30"]

{[%evp 27,57,25,60,59,54,54,56,53,66,27,22,10,14,0,0,0,52,18,29,-8,-12,-755,-737,-1744,-1771,-1497,-1480,-1459,-1458,-29986,-29987,-29999]} 1. e4 {[%emt 0:00:04]} e5 {[%emt 0:00:03]} 2. Nf3 {[%emt 0:00:37]} Nc6 {[%emt 0:00:05]} 3. d4 {[%emt 0:00:26]} exd4 {[%emt 0:00:09]} 4. Bc4 {[%emt 0:00:05]} Nf6 {[%emt 0:00:16]} 5. e5 {[%emt 0:00:07]} d5 {[%emt 0:00:06]} 6. Bb5 {[%emt 0:00:04]} Ne4 {[%emt 0:00:11]} 7. Nxd4 {[%emt 0:00:26]} Bd7 {[%emt 0:00:05]} 8. Bxc6 {[%emt 0:00:27]} bxc6 {[%emt 0:00:13]} 9. O-O {[%emt 0:00:48]} Bc5 {[%emt 0:00:31]} 10. f3 {[%emt 0:03:17]} Ng5 {[%emt 0:01:09]} 11. f4 {[%emt 0:02:19]} Ne4 {[%emt 0:02:57]} 12. Be3 {[%emt 0:00:31]} O-O {[%emt 0:04:28]} 13. Nd2 {[%emt 0:00:51]} Nxd2 {[%emt 0:05:05]} 14. Qxd2 {[%emt 0:00:09]} f6 {[%emt 0:07:16]} 15. Rae1 {[%emt 0:09:37] C56: Two Knights: 4 d4 exd4 5 0-0 Nxe4.} fxe5 {[%emt 0:03:52]} 16. fxe5 {[%emt 0:00:11]} Rxf1+ {[%emt 0:01:36]} 17. Rxf1 {[%emt 0:01:51] [#] Strongly threatening e6. White is slightly better.} Qe8 $146 {[%emt 0:08:11] Against e6} ({Predecessor:} 17... Qe7 18. e6 Bxd4 19. Bxd4 Qxe6 20. Re1 Qf7 21. h3 Bf5 22. Re3 a6 23. Qc3 Qd7 {1-0 (72) Grandelius,N (2670)-Eden,J (2294) Chalons en Champagne 2021}) 18. Nb3 {[%emt 0:04:45]} Bb6 {[%emt 0:00:28]} 19. Qc3 {[%emt 0:05:55]} Qg6 {[%emt 0:11:48]} 20. Nc5 {[%emt 0:02:49]} Bh3 {[%emt 0:09:06][%csl Gh3][%cal Rg6g2,Bd7h3,Bh3g2,Bg2e4][%mdl 32] [#]} 21. Rf2 {[%emt 0:00:40]} Qg4 {[%emt 0:05:50]} (21... Rf8 $11 22. Rxf8+ Kxf8) 22. Qd4 {[%emt 0:09:38]} Re8 {[%emt 0:06:10]} 23. Kf1 {[%emt 0:02:03]} Rxe5 $40 {[%emt 0:06:28][%cal Oe5e4][%mdl 128] And now ...Re4! would win. White needs to defend precisely. The board is on fire.} 24. Nd7 $2 {[%emt 0:08:18][%mdl 8192] [#] Loses the game.} (24. Qxg4 $11 Bxg4 25. Bd4) 24... Bxg2+ $1 $19 {[%emt 0:10:50] This bishop pair is nice.} (24... Bxd4 $2 25. Rf8#) 25. Kg1 {[%emt 0:00:50]} Be4+ {[%emt 0:01:16]} (25... Bxd4 $2 26. Rf8#) 26. Kf1 {[%emt 0:00:06]} Qxd7 {[%emt 0:02:22]} 27. Qxe5 {[%emt 0:00:09]} Qh3+ {[%emt 0:01:27]} 28. Ke1 {[%emt 0:01:26]} Qxe3+ {[%emt 0:00:18]} 29. Re2 {[%emt 0:00:11]} Qc1# {[%emt 0:00:06] Weighted Error Value: White=1.26/Black=0.08 (flawless)} 0-1

[Event "3rd VIZAG GM-Open 2022"]
[Site "Visakapatnam"]
[Date "2022.06.13"]
[Round "1.12"]
[White "Azaladze, Shota"]
[Black "Dhruva Thota"]
[Result "1-0"]
[ECO "A11"]
[WhiteElo "2420"]
[BlackElo "1743"]
[Annotator "TA"]
[PlyCount "63"]
[EventDate "2022.06.13"]
[EventType "swiss"]
[EventCountry "IND"]
[SourceTitle "playchess.com"]
[Source "ChessBase"]
[SourceQuality "1"]
[TimeControl "5400+30"]

{[%evp 14,63,38,25,28,13,16,10,16,27,37,30,55,25,29,6,52,0,-3,-25,-15,-56,-57,-51,-39,-104,-97,-95,-91,-83,-68,-66,-73,-88,-58,-129,0,0,477,500,499,478,711,684,681,655,668,656,750,584,747,704]} 1. Nf3 {[%emt 0:00:07]} Nf6 {[%emt 0:00:45]} 2. g3 {[%emt 0:00:05]} g6 {[%emt 0:00:37]} 3. b3 {[%emt 0:00:14]} Bg7 {[%emt 0:00:49]} 4. Bb2 {[%emt 0:00:07]} O-O {[%emt 0:00:52]} 5. Bg2 {[%emt 0:00:04]} a5 {[%emt 0:01:19]} 6. c4 {[%emt 0:00:30]} c6 {[%emt 0:03:15]} 7. O-O {[%emt 0:00:30]} d5 {[%emt 0:01:04]} 8. d3 {[%emt 0:01:03][%cal Bd2d3,Bd3e4,Be4e5][%mdl 32] 8.Nc3 is the hot move.} b6 {[%emt 0:06:27] A11: English Opening: 1...c6.} 9. Nbd2 {[%emt 0:01:20]} Bb7 {[%emt 0:02:15]} 10. e4 {[%emt 0:03:50]} dxe4 {[%emt 0:04:00] The position is equal.} 11. dxe4 {[%emt 0:00:47] [#]} Nfd7 $146 {[%emt 0:02:18][%cal Bf6d7,Bd7c5,Bc5e6][%mdl 32]} ({Predecessor:} 11... c5 12. e5 Nfd7 13. Qe2 Nc6 14. Ne4 Ndxe5 15. Nxe5 Nxe5 16. Nxc5 Bxg2 17. Kxg2 bxc5 18. Bxe5 Bxe5 19. Qxe5 {½-½ (24) Stryjecki,M (2325)-Grabarczyk,M (2470) Lubniewice 1998}) 12. Bxg7 {[%emt 0:01:20]} Kxg7 {[%emt 0:00:12]} 13. e5 {[%emt 0:00:02][%cal Oe5e6] aiming for e6!} Nc5 $1 {[%emt 0:03:27]} 14. Re1 {[%emt 0:05:27]} a4 {[%emt 0:12:36]} (14... Nba6 $11) 15. Re3 {[%emt 0:02:55]} (15. b4 $1 $14 Nd3 16. Re3 Nxb4 17. a3) 15... axb3 $11 {[%emt 0:02:26]} 16. axb3 {[%emt 0:00:05][%cal Oe5e6]} Nba6 {[%emt 0:02:03][%cal Bb8a6,Ba6b4,Bb4c6][%mdl 32]} 17. Qc1 {[%emt 0:03:10][%cal Oe5e6]} Ne6 $1 {[%emt 0:04:59]} 18. Qc3 {[%emt 0:01:35]} c5 {[%emt 0:06:41]} 19. h4 {[%emt 0:07:48]} ({Better is} 19. Ng5 $15 Nac7 20. Bxb7 Rxa1+ 21. Qxa1 Nxg5 22. Ne4) 19... Nb4 $17 {[%emt 0:02:58]} 20. Rxa8 {[%emt 0:05:51]} Qxa8 {[%emt 0:02:30]} 21. Bh3 {[%emt 0:01:30]} Nc6 {[%emt 0:07:11]} 22. Bxe6 {[%emt 0:03:08]} fxe6 {[%emt 0:00:38]} 23. Rd3 {[%emt 0:00:22]} h6 {[%emt 0:08:15]} 24. h5 {[%emt 0:02:40]} (24. Rd7 $15) 24... g5 {[%emt 0:03:30]} ({Black should try} 24... gxh5 $17 {Strongly threatening ...Nb4.} 25. Rd7 Qc8) 25. Rd7 $11 {[%emt 0:01:39]} Qc8 $2 {[%emt 0:09:56][%mdl 8192]} (25... g4 $11 26. Qd3 Qa1+ 27. Nf1 Rxf3 28. Qg6+ Kf8 29. Qxh6+ (29. Rxb7 Qe1 $14) 29... Ke8 30. Rxb7 Qa8 31. Qg6+ (31. Rxb6 Nd4 $15) 31... Rf7 32. Rxb6 (32. Qg8+ Rf8 $11) 32... Qa2 33. Qg8+ (33. Rxc6 $2 Qxf2+ 34. Kh1 Qxf1+ 35. Kh2 Qh3+ 36. Kg1 Qxg3+ 37. Kh1 Qf3+ 38. Kg1 Qf2+ 39. Kh1 Qf1+ 40. Kh2 Qh3+ 41. Kg1 Qg3+ 42. Kh1 Qh3+ 43. Kg1 Qg3+ $19) 33... Rf8 34. Qxf8+ (34. Qg6+ Kd8 $11) 34... Kxf8 35. Rxc6 Qxb3) 26. Qd3 $18 {[%emt 0:00:57] [#] White threatens Qg6+ and mate. White is clearly winning.} Rf5 {[%emt 0:00:03] ...Kf8 is the strong threat.} 27. g4 {[%emt 0:01:38]} Rf7 {[%emt 0:07:45]} (27... Rf4 $142 28. Qg6+ Kf8 29. Qxh6+ (29. Qxe6 Ke8 $17) 29... Ke8 30. Qxg5 Rxf3 31. Rxb7 (31. Nxf3 Kxd7 32. Qd2+ Kc7 $15) 31... Rf8) 28. Qg6+ {[%emt 0:01:30]} Kf8 {[%emt 0:00:03]} 29. Qxh6+ {[%emt 0:00:17]} Ke8 {[%emt 0:00:05]} 30. Rd3 {[%emt 0:01:11] [#] Black must now prevent Qg6.} Nb4 {[%emt 0:01:30]} 31. Re3 {[%emt 0:00:32] Threatens to win with Qg6.} Nc2 {[%emt 0:01:17]} 32. Qg6 {[%emt 0:01:49] Weighted Error Value: White=0.29 (precise) /Black=0.52} 1-0

[Event "3rd VIZAG GM-Open 2022"]
[Site "Visakapatnam"]
[Date "2022.06.13"]
[Round "1.13"]
[White "Babu, Rao R."]
[Black "Hossain, Enamul"]
[Result "0-1"]
[ECO "A65"]
[WhiteElo "1689"]
[BlackElo "2413"]
[Annotator "TA"]
[PlyCount "92"]
[EventDate "2022.06.13"]
[EventType "swiss"]
[EventCountry "IND"]
[SourceTitle "playchess.com"]
[Source "ChessBase"]
[SourceQuality "1"]
[TimeControl "5400+30"]

{[%evp 16,92,18,31,10,8,10,16,7,0,4,2,16,-5,20,8,0,0,28,21,37,-85,-108,-101,-78,-81,-86,-75,-87,-166,-162,-163,-112,-120,-113,-182,-174,-217,-223,-236,-229,-230,-252,-242,-225,-296,-303,-295,-289,-381,-381,-374,-370,-374,-356,-418,-416,-419,-429,-454,-430,-620,-626,-687,-666,-714,-725,-721,-713,-737,-741,-880,-879,-1063,-1002,-1728,-1820,-1639,-1504]} 1. d4 {[%emt 1:31:00] Mikhalevski,V} Nf6 {[%emt 1:31:00]} 2. c4 {[%emt 0:00:30]} g6 {[%emt 0:00:30]} 3. Nc3 {[%emt 0:00:30]} Bg7 {[%emt 0:00:30]} 4. e4 {[%emt 0:00:30]} d6 {[%emt 0:00:30]} 5. f3 {[%emt 0:00:30]} O-O {[%emt 0:00:30]} 6. Nge2 {[%emt 0:00:30]} c5 {[%emt 0:00:30]} 7. d5 {[%emt 0:00:30]} e6 {[%emt 0:00:30]} 8. Ng3 {[%emt 0:00:30]} exd5 {[%emt 0:00:30]} 9. cxd5 {[%emt 0:00:30]} (9. Nxd5 Nxd5 10. cxd5 f5 $15) 9... a6 {[%emt 0:00:30] A65: Modern Benoni: 6 e4.} 10. Be3 {[%emt 0:00:30]} b5 {[%emt 0:00:30]} 11. Qd2 {[%emt 0:00:30]} Re8 {[%emt 0:00:30] The position is equal.} 12. Be2 {[%emt 0:00:30]} Nbd7 {[%emt 0:00:30]} 13. O-O {[%emt 0:00:30]} h5 {[%emt 0:00:30]} 14. Bh6 {[%emt 0:00:30] [#]} Bh8 $146 {[%emt 0:00:30]} ({Predecessor:} 14... h4 15. Nh1 Nh5 16. Bxg7 Kxg7 17. a4 b4 18. Nd1 f5 19. exf5 Nb6 20. fxg6 Rxe2 21. Qxe2 {0-1 (34) Akobian,V (2618)-Mikhalevski,V (2579) Caleta 2011 CBM 141 [Mikhalevski,V]}) 15. Rae1 {[%emt 0:00:30]} Nh7 {[%emt 0:00:30]} 16. Be3 {[%emt 0:00:30]} Qa5 {[%emt 0:00:30]} 17. a3 {[%emt 0:00:30]} Nb6 {[%emt 0:00:30]} 18. Nd1 {[%emt 0:00:30]} (18. Rb1 $14 {keeps the upper hand.}) 18... Qxd2 $17 {[%emt 0:00:30]} 19. Bxd2 {[%emt 0:00:30]} Bd4+ {[%emt 0:00:30]} 20. Be3 {[%emt 0:00:30]} Bxe3+ {[%emt 0:00:30]} 21. Nxe3 {[%emt 0:00:30]} f5 {[%emt 0:00:30]} 22. Nc2 {[%emt 0:00:30]} (22. Nh1 $17) 22... h4 $19 {[%emt 0:00:30]} 23. Nh1 {[%emt 0:00:30]} fxe4 {[%emt 0:00:30]} (23... Kg7 $19 24. Nf2 Nf6) 24. fxe4 $17 {[%emt 0:00:30]} (24. Bd3 exd3 $1 25. Rxe8+ Kf7 $19) 24... Rxe4 {[%emt 0:00:30]} 25. Bd3 {[%emt 0:00:30]} (25. Nf2 $17 Re7 26. Bd3 Rxe1 27. Rxe1) 25... Rxe1 $19 {[%emt 0:00:30]} 26. Rxe1 {[%emt 0:00:30] [#]} Kf7 $1 {[%emt 0:00:30]} (26... Nxd5 27. Bxg6 Nhf6 28. Nf2) 27. Ne3 {[%emt 0:00:30]} Nf6 {[%emt 0:00:30]} 28. g3 {[%emt 0:00:30]} hxg3 {[%emt 0:00:30]} (28... Nbxd5 29. Nxd5 Nxd5 30. Be4) 29. Nxg3 {[%emt 0:00:30]} Bh3 {[%emt 0:00:30]} ({Inferior is} 29... Nbxd5 30. Nxd5 Nxd5 31. Ne4 $17 (31. Be4 Bb7 $17)) 30. Ne4 {[%emt 0:00:30]} Nxe4 {[%emt 0:00:30]} 31. Bxe4 {[%emt 0:00:30]} Re8 {[%emt 0:00:30]} 32. Bg2 {[%emt 0:00:30]} Bxg2 {[%emt 0:00:30]} 33. Kxg2 {[%emt 0:00:30][%mdl 4096] Endgame KRN-KRN} Re5 {[%emt 0:00:30]} (33... Nxd5 $2 34. Rf1+ Ke6 35. Ng4 $19) 34. Rf1+ {[%emt 0:00:30]} Kg7 {[%emt 0:00:30]} 35. Ng4 {[%emt 0:00:30]} Rxd5 {[%emt 0:00:30]} 36. Nf6 {[%emt 0:00:30]} Re5 {[%emt 0:00:30]} ({Avoid the trap} 36... Rd2+ $2 37. Kg3 $19) 37. Ng4 {[%emt 0:00:30] Black is clearly winning.} Re2+ {[%emt 0:00:30]} 38. Kg1 {[%emt 0:00:30]} (38. Rf2 $142 Rxf2+ 39. Nxf2) 38... Rxb2 {[%emt 0:00:30]} 39. Nf6 {[%emt 0:00:30]} Re2 {[%emt 0:00:30] Prevents Ne8+.} 40. h4 {[%emt 0:00:30]} Re6 {[%emt 0:00:30]} 41. Ng4 {[%emt 0:00:30]} Nc4 {[%emt 0:00:30]} 42. Rf3 {[%emt 0:00:30]} d5 {[%emt 0:00:30][%cal Bd6d5,Bd5d4,Bd4d3][%mdl 32] aiming for ...d4.} 43. Kf2 {[%emt 0:00:30]} d4 {[%emt 0:00:30]} 44. Kg3 {[%emt 0:00:30]} Ne5 {[%emt 0:00:30]} 45. Rf1 {[%emt 0:00:30]} Nxg4 {[%emt 0:00:30]} 46. Kxg4 {[%emt 0:00:30]} d3 {[%emt 0:00:30] Weighted Error Value: White=0.47/Black=0.05 (flawless)} 0-1

[Event "3rd VIZAG GM-Open 2022"]
[Site "Visakapatnam"]
[Date "2022.06.13"]
[Round "1.14"]
[White "Nitin, S.."]
[Black "Soboleva, Anastasia"]
[Result "1-0"]
[ECO "B31"]
[WhiteElo "2399"]
[BlackElo "1744"]
[Annotator "TA"]
[PlyCount "91"]
[EventDate "2022.06.13"]
[EventType "swiss"]
[EventCountry "IND"]
[SourceTitle "playchess.com"]
[Source "ChessBase"]
[SourceQuality "1"]
[TimeControl "5400+30"]

{[%evp 12,91,6,-5,22,12,11,10,58,48,78,78,73,61,71,41,116,116,116,115,115,125,124,62,73,50,111,97,83,81,101,12,54,60,54,41,44,14,9,18,23,-13,73,81,212,148,159,168,175,95,115,64,215,212,163,133,135,145,168,167,959,931,966,885,29947,29942,10329,2554,29984,997,29984,0,5920,5836,29966,29965,29948,29957,29990,29991,29991,29992]} 1. e4 {[%emt 1:31:00]} c5 {[%emt 1:31:00]} 2. Nf3 {[%emt 0:00:30]} Nc6 {[%emt 0:00:30]} 3. Bb5 {[%emt 0:00:30]} g6 {[%emt 0:00:30]} 4. O-O {[%emt 0:00:30]} Bg7 {[%emt 0:00:30]} 5. c3 {[%emt 0:00:30]} a6 {[%emt 0:00:30]} 6. Ba4 {[%emt 0:00:30][%cal Bb5a4,Ba4c2,Bc2b3][%mdl 32]} b5 {[%emt 0:00:30]} 7. Bc2 {[%emt 0:00:30]} Bb7 {[%emt 0:00:30] B31: Sicilian: 2...Nc6 3 Bb5 g6.} 8. d4 {[%emt 0:00:30]} cxd4 {[%emt 0:00:30]} 9. cxd4 {[%emt 0:00:30]} Nb4 {[%emt 0:00:30]} (9... Nf6 $11 {deserves consideration.}) 10. Bb3 $1 $14 {[%emt 0:00:30]} Nf6 {[%emt 0:00:30] [#]} 11. a3 $146 {[%emt 0:00:30]} ({Predecessor:} 11. e5 Ne4 12. a3 Nd5 13. Re1 f5 14. Nbd2 Nxd2 15. Bxd2 e6 16. Rc1 h6 17. Rc5 {0-1 (71) Guedes,M-Yanaguihara,V (1764) Sao Sebastiao 2013}) 11... Nc6 {[%emt 0:00:30]} 12. e5 {[%emt 0:00:30]} Ne4 {[%emt 0:00:30]} 13. Ne1 {[%emt 0:00:30]} Qb6 {[%emt 0:00:30]} (13... f6 $14) 14. Be3 $16 {[%emt 0:00:30]} Na5 {[%emt 0:00:30]} 15. f3 $1 {[%emt 0:00:30]} Nxb3 {[%emt 0:00:30]} 16. Qxb3 {[%emt 0:00:30]} Ng5 {[%emt 0:00:30]} 17. Nd2 {[%emt 0:00:30]} (17. Bxg5 $16 Qxd4+ 18. Be3 Qxe5 19. Qc3) 17... h6 $14 {[%emt 0:00:30]} 18. d5 {[%emt 0:00:30]} (18. h4 $5 {[%cal Rh4g5]} Nh7 19. Nd3 $14) 18... Qc7 {[%emt 0:00:30]} ({Black should try} 18... Qd8 $1 $14) 19. f4 {[%emt 0:00:30] Hoping for d6.} Nh7 {[%emt 0:00:30]} 20. Nd3 {[%emt 0:00:30]} O-O {[%emt 0:00:30]} 21. Rfc1 {[%emt 0:00:30]} (21. Rac1 $16 Qb8 22. Nf3) 21... Qd8 {[%emt 0:00:30]} 22. Nc5 {[%emt 0:00:30]} Bc8 {[%emt 0:00:30]} 23. Nf3 {[%emt 0:00:30]} d6 {[%emt 0:00:30]} 24. Nd3 {[%emt 0:00:30]} Bb7 {[%emt 0:00:30]} 25. Nb4 $36 {[%emt 0:00:30][%mdl 2048] Black is under pressure.} dxe5 {[%emt 0:00:30]} 26. fxe5 {[%emt 0:00:30]} (26. Nxe5 $5 {[%cal Rb4c6]} Nf6 27. Nbc6 Bxc6 28. dxc6 $16) 26... e6 {[%emt 0:00:30]} (26... Ng5 $11 {keeps the balance.}) 27. dxe6 $16 {[%emt 0:00:30] 0x0.00207a408c83dp-1022s more active pieces.} Bxf3 {[%emt 0:00:30]} (27... fxe6 $16 28. Qxe6+ Rf7) 28. gxf3 {[%emt 0:00:30]} Ng5 {[%emt 0:00:30]} 29. exf7+ {[%emt 0:00:30]} Rxf7 {[%emt 0:00:30]} 30. f4 {[%emt 0:00:30]} (30. Kh1 $1 $18) 30... Nf3+ {[%emt 0:00:30]} 31. Kg2 {[%emt 0:00:30]} (31. Kh1 $16 {Threatens to win with e6.} Nd4 32. Qd3) 31... Nh4+ $2 {[%emt 0:00:30]} (31... Nd2 $14 32. Qc2 Nc4) 32. Kh1 $18 {[%emt 0:00:30]} Qb8 {[%emt 0:00:30]} 33. Qd5 {[%emt 0:00:30] And now Bf2 would win.} Nf5 {[%emt 0:00:30]} 34. Bf2 {[%emt 0:00:30]} Ne7 {[%emt 0:00:30] [#]} 35. Qe4 {[%emt 0:00:30] Strongly threatening Bc5.} Bxe5 $2 {[%emt 0:00:30]} (35... Qf8 36. Be3 Kh7) 36. fxe5 {[%emt 0:00:30]} Rxf2 {[%emt 0:00:30]} 37. Nc6 {[%emt 0:00:30]} Nxc6 {[%emt 0:00:30]} 38. Qxg6+ {[%emt 0:00:30]} ({Inferior is} 38. Qxc6 Qf8 $11) 38... Kf8 39. Qxh6+ {[%emt 0:00:30]} (39. Rf1 $142 Qa7 40. Qxc6) 39... Kf7 {[%emt 0:01:00]} 40. Qh7+ {[%emt 0:00:30]} (40. Rxc6 $142 Qd8 {[#]} 41. Rc7+ $3 {[%mdl 512]} Qxc7 42. Qh7+ Ke6 43. Qxc7 Rd2 44. Qc6+ Ke7 45. Qxa8) 40... Kf8 {[%emt 0:00:30]} 41. Qh6+ {[%emt 0:00:30]} (41. Rg1 $142 Rf7 42. Qh6+ Ke7 43. Qxc6 Qf8 44. Rad1 Rd8 45. Qc7+ Ke6 46. Rg6+ Rf6 47. Qb6+ Ke7 48. exf6+ Kf7 49. Rxd8) 41... Kf7 $1 {[%emt 0:00:30][%cal Ob8e5]} 42. Qh5+ {[%emt 0:00:30]} Kf8 {[%emt 0:00:30]} 43. Rxc6 {[%emt 0:00:30] White mates.} Qb7 {[%emt 0:00:30]} 44. Rac1 {[%emt 0:00:30]} Re8 {[%emt 0:00:30]} 45. Qh8+ {[%emt 0:00:30]} Ke7 {[%emt 0:00:30]} 46. Qh4+ {[%emt 0:00:30] Weighted Error Value: White=0.30/Black=0.94} 1-0